bitfinex-derivatives/quotes_BTCF0:USTF0_20210104
["timestamp","ask_amount","ask_price","bid_price","bid_amount"]
[1609757587530,0.13632608,30314.0,30313.0,0.10899]
[1609757590518,4.39275062,30316.0,30313.0,0.10899]
[1609757590717,4.39275062,30316.0,30300.0,0.13632608]
[1609757590917,4.39275062,30316.0,30313.0,0.15189]
[1609757591519,0.13632608,30314.0,30313.0,0.15189]
[1609757591919,0.13632608,30314.0,30306.0,0.13632608]
[1609757592723,0.13632608,30314.0,30300.0,0.15806]
[1609757593722,0.15603,30317.0,30300.0,0.15806]
[1609757593924,0.15603,30317.0,30268.0,5.1333]
[1609757594126,0.15603,30317.0,30268.0,0.14452]
[1609757594325,0.13632608,30285.0,30268.0,0.14452]
[1609757595727,5.3608,30289.0,30268.0,0.14452]
[1609757595927,0.15769,30296.0,30268.0,0.14452]
[1609757596128,4.3781,30293.0,30268.0,0.14452]
[1609757596328,0.13632608,30269.0,30268.0,0.00482]
[1609757596929,0.13632608,30269.0,30236.0,1.34493856]
[1609757597531,5.5144,30266.0,30229.0,1.68314418]
[1609757598330,5.5144,30266.0,30237.0,0.13632608]
[1609757598530,5.5144,30266.0,30237.0,0.29557608]
[1609757599132,0.13664,30280.0,30237.0,0.19557608]
[1609757599332,5.1836,30272.0,30237.0,0.19557608]
[1609757599733,4.3891,30268.0,30237.0,0.19557608]
[1609757600033,0.16014,30268.0,30266.0,0.01]
[1609757600233,0.13632608,30267.0,30266.0,0.01]
[1609757600834,0.80652608,30267.0,30266.0,0.01]
[1609757601735,0.80272608,30267.0,30266.0,0.01]
[1609757604437,0.80272608,30267.0,30237.0,0.15925]
[1609757604638,0.80272608,30267.0,30233.0,0.13632608]
[1609757605237,0.80272608,30267.0,30215.0,4.3879]
[1609757605439,3.7585,30245.0,30194.0,1.6809644]
[1609757605841,4.5489,30241.0,30194.0,1.6809644]
[1609757606040,0.14756,30248.0,30194.0,1.6809644]
[1609757606241,5.1652,30231.0,30210.0,0.13632608]
[1609757606641,5.1652,30231.0,30194.0,1.7984744]
[1609757606841,0.14756,30248.0,30194.0,1.7984744]
[1609757606842,0.12228,30241.0,30194.0,1.7984744]
[1609757607442,0.74268,30241.0,30194.0,0.11751]
[1609757608243,0.74268,30241.0,30225.0,0.13632608]
[1609757608444,0.12228,30241.0,30225.0,0.29250608]
[1609757608645,0.16014,30268.0,30225.0,0.15618]
[1609757608843,0.2993,30271.0,30225.0,0.15618]
[1609757610244,0.2993,30271.0,30267.0,0.13632608]
[1609757610643,0.2993,30271.0,30267.0,0.1522]
[1609757612045,0.2993,30271.0,30267.0,0.12137]
[1609757612246,0.13632608,30268.0,30267.0,0.10077]
[1609757612646,0.23632608,30268.0,30267.0,0.10077]
[1609757613045,0.13632608,30268.0,30225.0,0.15618]
[1609757613447,0.13632608,30268.0,30217.0,4.6189]
[1609757614245,0.13632608,30250.0,30249.0,0.13632608]
[1609757614449,0.13632608,30250.0,30222.0,0.0977]
[1609757614647,0.13632608,30250.0,30217.0,4.6189]
[1609757615250,0.2993,30271.0,30217.0,4.6189]
[1609757615446,0.2993,30271.0,30217.0,4.75392]
[1609757616246,0.13632608,30244.0,30242.0,0.13632608]
[1609757616847,0.2993,30271.0,30242.0,0.13632608]
[1609757617047,0.2993,30271.0,30242.0,0.29470608]
[1609757617449,0.2993,30271.0,30242.0,0.15838]
[1609757617849,0.7652,30270.0,30242.0,0.15838]
[1609757618050,0.2993,30271.0,30217.0,0.13502]
[1609757618251,0.13632608,30218.0,30217.0,0.10319]
[1609757618451,0.11813,30241.0,30217.0,0.10319]
[1609757618653,0.11813,30241.0,30201.0,1.6890374]
[1609757618850,5.176,30222.0,30201.0,1.6890374]
[1609757619252,5.176,30222.0,30201.0,0.14401]
[1609757619853,0.13864,30222.0,30201.0,0.14401]
[1609757620854,0.13632608,30225.0,30221.0,0.13632608]
[1609757621454,0.13839,30229.0,30221.0,0.13632608]
[1609757621854,0.13839,30229.0,30217.0,0.0478]
[1609757622456,0.14607,30229.0,30201.0,1.88698258]
[1609757622656,4.8114,30223.0,30201.0,1.88698258]
[1609757623057,4.40360042,30223.0,30201.0,0.05601]
[1609757623659,0.14607,30229.0,30190.0,1.83223558]
[1609757623861,0.14607,30229.0,30194.0,0.11116]
[1609757624059,4.5156,30243.0,30194.0,0.11116]
[1609757624862,4.5156,30243.0,30199.0,0.13632608]
[1609757625163,0.0994,30287.0,30199.0,0.13632608]
[1609757625361,4.7216,30223.0,30199.0,0.13632608]
[1609757625762,4.83617,30223.0,30199.0,0.13632608]
[1609757626762,0.13632608,30200.0,30199.0,0.13632608]
[1609757627564,4.2642,30204.0,30194.0,0.11116]
[1609757627964,0.11457,30223.0,30194.0,0.11116]
[1609757627965,5.2319,30212.0,30194.0,0.11116]
[1609757628568,4.9853,30201.0,30194.0,0.11116]
[1609757628969,0.13632608,30195.0,30169.0,1.55345513]
[1609757629168,0.13632608,30195.0,30164.0,1.56178455]
[1609757630870,4.9853,30201.0,30184.0,0.13632608]
[1609757631070,4.9853,30201.0,30184.0,0.27245608]
[1609757632081,0.12212,30213.0,30184.0,0.27245608]
[1609757632280,0.21287,30223.0,30184.0,0.27245608]
[1609757632473,4.9925,30227.0,30184.0,0.27245608]
[1609757632892,4.9925,30227.0,30213.0,0.13632608]
[1609757633077,0.2879,30287.0,30213.0,0.13632608]
[1609757633272,4.3775,30236.0,30213.0,0.24685608]
[1609757633473,0.0993,30241.0,30213.0,0.24685608]
[1609757633874,0.0993,30241.0,30213.0,0.11053]
[1609757634174,0.10978,30242.0,30213.0,0.11053]
[1609757634972,0.10978,30242.0,30231.0,0.13632608]
[1609757635173,5.2273,30247.0,30231.0,0.25520608]
[1609757635976,5.2273,30247.0,30231.0,0.11888]
[1609757636677,0.2908,30262.0,30231.0,0.11888]
[1609757637075,0.2908,30262.0,30234.0,0.13632608]
[1609757639078,0.13632608,30235.0,30234.0,0.13632608]
[1609757639780,0.13632608,30235.0,30231.0,0.11888]
[1609757640181,0.12595,30243.0,30231.0,0.11888]
[1609757640380,0.12595,30243.0,30221.0,0.15815]
[1609757640979,0.13632608,30233.0,30232.0,0.13632608]
[1609757641179,0.12595,30243.0,30232.0,0.13632608]
[1609757642982,0.13632608,30233.0,30232.0,0.13632608]
[1609757644686,0.12595,30243.0,30232.0,0.13632608]
[1609757644883,4.0309,30245.0,30232.0,0.13632608]
[1609757645084,4.0309,30245.0,30239.0,0.13632608]
[1609757645685,4.0309,30245.0,30221.0,0.15815]
[1609757646084,4.0309,30245.0,30213.0,0.11053]
[1609757646285,4.0309,30245.0,30197.0,4.8197]
[1609757647085,4.0309,30245.0,30241.0,0.13632608]
[1609757649086,0.13632608,30243.0,30241.0,0.13632608]
[1609757649486,0.27973608,30243.0,30241.0,0.13632608]
[1609757650890,0.13632608,30243.0,30241.0,0.13632608]
[1609757651294,0.15156,30250.0,30241.0,0.13632608]
[1609757651491,4.2165,30258.0,30241.0,0.13632608]
[1609757653092,4.2165,30258.0,30257.0,0.13632608]
[1609757653492,0.13632608,30260.0,30257.0,0.11062608]
[1609757654194,0.13632608,30260.0,30257.0,0.10742608]
[1609757657097,4.0042,30288.0,30253.0,0.15683]
[1609757657498,4.0042,30288.0,30287.0,0.13632608]
[1609757657698,0.281,30295.0,30287.0,0.13632608]
[1609757658102,0.88153908,30307.0,30287.0,0.13632608]
[1609757658304,5.1835,30308.0,30287.0,0.13632608]
[1609757659504,5.1835,30308.0,30265.0,0.1251]
[1609757659505,5.1835,30308.0,30294.0,0.13632608]
[1609757660503,5.1835,30308.0,30272.0,0.11804]
[1609757660903,0.14445,30308.0,30272.0,0.11804]
[1609757661104,5.2105,30284.0,30272.0,0.11804]
[1609757661307,0.12968,30284.0,30265.0,0.1251]
[1609757661505,4.459,30270.0,30265.0,0.1132]
[1609757661904,4.459,30270.0,30253.0,0.15683]
[1609757662305,4.459,30270.0,30245.0,1.49870468]
[1609757662505,0.13632608,30264.0,30262.0,0.13632608]
[1609757662706,0.12957,30276.0,30245.0,1.49870468]
[1609757662906,0.12957,30276.0,30245.0,0.15649]
[1609757664615,0.12957,30276.0,30275.0,0.13632608]
[1609757665817,0.12968,30284.0,30275.0,0.13632608]
[1609757666417,0.13632608,30276.0,30275.0,0.13632608]
[1609757666818,0.27344608,30276.0,30275.0,0.13632608]
[1609757667019,0.13712,30276.0,30275.0,0.13632608]
[1609757669822,0.12887,30284.0,30275.0,0.13632608]
[1609757670423,0.12887,30284.0,30268.0,0.12313]
[1609757670622,3.3659671,30290.0,30268.0,0.12313]
[1609757670832,0.12467,30284.0,30268.0,0.12313]
[1609757671223,0.12467,30284.0,30257.0,0.15026]
[1609757671426,0.12467,30284.0,30245.0,4.80289]
[1609757671629,0.12467,30284.0,30268.0,0.13632608]
[1609757671822,0.12467,30284.0,30258.0,0.11983]
[1609757673226,4.8996,30275.0,30258.0,0.11983]
[1609757673432,0.12467,30284.0,30258.0,0.11983]
[1609757675629,0.12467,30284.0,30283.0,0.13632608]
[1609757675829,0.13632608,30288.0,30283.0,0.13632608]
[1609757676229,0.13632608,30288.0,30271.0,0.12188]
[1609757676731,0.25453608,30288.0,30271.0,0.12188]
[1609757676931,0.11821,30288.0,30271.0,0.12188]
[1609757677631,0.11821,30288.0,30283.0,0.13632608]
[1609757677831,0.11821,30288.0,30271.0,0.12188]
[1609757678031,0.6998,30287.0,30258.0,0.11983]
[1609757678431,0.6998,30287.0,30245.0,0.15649]
[1609757678631,0.6998,30287.0,30242.0,4.1589]
[1609757678832,5.4349,30283.0,30224.0,4.6194]
[1609757679032,5.4349,30283.0,30241.0,1.60236342]
[1609757679635,5.4349,30283.0,30269.0,0.13632608]
[1609757681740,0.13632608,30270.0,30269.0,0.13632608]
[1609757682540,0.09881,30276.0,30254.0,0.1042]
[1609757682741,0.761,30275.0,30254.0,0.1042]
[1609757683542,0.13632608,30255.0,30249.0,0.13632608]
[1609757683742,5.48392608,30255.0,30249.0,0.13632608]
[1609757684443,5.48392608,30255.0,30241.0,0.10959]
[1609757684843,0.13632608,30255.0,30211.0,1.48151145]
[1609757685044,4.7748,30244.0,30211.0,1.48151145]
[1609757685244,0.13632608,30255.0,30211.0,1.48151145]
[1609757685643,0.13113,30257.0,30249.0,0.13632608]
[1609757686846,0.13113,30257.0,30241.0,0.12709]
[1609757687647,3.7329,30256.0,30241.0,0.12709]
[1609757689649,3.7329,30256.0,30255.0,0.13632608]
[1609757689850,0.26745608,30257.0,30255.0,0.13632608]
[1609757690751,0.26745608,30257.0,30255.0,0.23452608]
[1609757691251,0.13113,30257.0,30255.0,0.23452608]
[1609757691453,0.1976,30260.0,30255.0,0.23452608]
[1609757691651,0.1976,30260.0,30259.0,0.13632608]
[1609757691851,0.0994,30260.0,30259.0,0.13632608]
[1609757692553,0.14765,30264.0,30259.0,0.13632608]
[1609757692752,5.1253,30285.0,30259.0,0.13632608]
[1609757693454,0.01015654,30283.0,30259.0,0.13632608]
[1609757693655,0.0993,30266.0,30260.0,0.0988]
[1609757694253,0.0993,30266.0,30256.0,0.06647]
[1609757694453,0.0993,30266.0,30248.0,0.05119]
[1609757694652,0.0993,30266.0,19184.0,0.01762059]
[1609757694953,0.0993,30266.0,30241.0,0.12709]
[1609757695153,0.0993,30266.0,19184.0,0.01762059]
[1609757695354,0.0993,30266.0,30210.0,0.0985]
[1609757695554,0.0993,30266.0,30230.0,0.0998]
[1609757695754,0.0993,30266.0,30261.0,0.13632608]
[1609757695954,5.58053,30269.0,30261.0,0.13632608]
[1609757697756,0.13632608,30262.0,30261.0,0.13632608]
[1609757697957,0.24819608,30262.0,30261.0,0.13632608]
[1609757698859,0.11187,30262.0,30261.0,0.13632608]
[1609757702467,0.83367,30262.0,30261.0,0.13632608]
[1609757702868,0.83367,30262.0,30242.0,0.10573]
[1609757703068,0.83367,30262.0,30230.0,0.10837]
[1609757703268,0.83367,30262.0,30214.0,1.46294203]
[1609757703269,0.11187,30262.0,30214.0,1.46294203]
[1609757703469,5.2706,30260.0,30214.0,1.46294203]
[1609757703869,5.2706,30260.0,30251.0,0.13632608]
[1609757704271,5.2706,30260.0,30234.0,0.09793]
[1609757705774,5.2706,30260.0,30242.0,0.13632608]
[1609757706176,5.2706,30260.0,30242.0,0.13322608]
[1609757706574,5.2706,30260.0,30234.0,0.06503]
[1609757706973,5.2706,30260.0,30234.0,0.01493]
[1609757707775,5.2706,30260.0,30237.0,0.13632608]
[1609757707974,5.2706,30260.0,30237.0,0.12142608]
[1609757709176,0.1002,30259.0,30237.0,0.12142608]
[1609757709376,5.2706,30260.0,30237.0,0.12142608]
[1609757709777,0.13632608,30238.0,30237.0,0.12142608]
[1609757709977,0.13632608,30238.0,30227.0,0.12339]
[1609757710177,4.91822608,30238.0,30227.0,0.12339]
[1609757710777,0.13632608,30238.0,30227.0,0.12339]
[1609757710977,4.074,30228.0,30211.0,0.11649]
[1609757711179,4.17762,30228.0,30199.0,1.45133604]
[1609757711580,4.17762,30228.0,30190.0,5.47568968]
[1609757711779,4.17762,30228.0,30221.0,0.13632608]
[1609757713582,0.10362,30228.0,30221.0,0.13632608]
[1609757713782,0.13632608,30224.0,30221.0,0.13632608]
[1609757716786,0.13632608,30224.0,30205.0,0.11594]
[1609757717186,0.13632608,30224.0,30191.0,4.6078]
[1609757717787,4.2961,30226.0,30218.0,0.03702608]
[1609757718386,4.2961,30226.0,30208.0,0.11787]
[1609757718589,0.10362,30228.0,30208.0,0.11787]
[1609757718789,4.4908,30215.0,30208.0,0.11787]
[1609757719191,0.12325,30220.0,30208.0,0.11787]
[1609757719390,0.12325,30220.0,30190.0,4.8688]
[1609757719792,0.12325,30220.0,30190.0,5.02989]
[1609757719991,0.12325,30220.0,30209.0,0.13632608]
[1609757720393,4.5013,30212.0,30209.0,0.13632608]
[1609757721493,4.5013,30212.0,30200.0,0.10539]
[1609757721895,4.5013,30212.0,30210.0,0.13632608]
[1609757722696,0.12325,30220.0,30210.0,0.13632608]
[1609757723501,3.75828392,30200.0,30191.0,4.6802]
[1609757723697,3.75828392,30200.0,30190.0,0.16109]
[1609757724097,3.75828392,30200.0,30199.0,0.13632608]
[1609757724497,3.75828392,30200.0,30199.0,0.24188608]
[1609757725499,3.45301002,30200.0,30199.0,0.24188608]
[1609757730508,3.14771912,30200.0,30199.0,0.24188608]
[1609757733715,3.04201912,30200.0,30199.0,0.10556]
[1609757733915,3.04201912,30200.0,30190.0,0.16109]
[1609757734114,3.04201912,30200.0,30183.0,3.9959]
[1609757734315,3.04201912,30200.0,30199.0,0.13632608]
[1609757734516,3.04201912,30200.0,30199.0,0.24034608]
[1609757735918,2.63505536,30200.0,30199.0,0.24034608]
[1609757736721,2.32984739,30200.0,30199.0,0.24034608]
[1609757740127,1.92294776,30200.0,30199.0,0.24034608]
[1609757742731,1.61776249,30200.0,30199.0,0.24034608]
[1609757744332,1.21087091,30200.0,30199.0,0.24034608]
[1609757748036,0.9056984,30200.0,30199.0,0.24034608]
[1609757748637,0.49881377,30200.0,30199.0,0.24034608]
[1609757748837,0.16171377,30200.0,30199.0,0.24034608]
[1609757751138,0.11942,30229.0,30199.0,0.24034608]
[1609757752439,0.11942,30229.0,30228.0,0.13632608]
[1609757752738,0.2728,30241.0,30228.0,0.13632608]
[1609757754441,0.2728,30241.0,30240.0,0.13632608]
[1609757755042,4.5652,30258.0,30240.0,0.13632608]
[1609757756043,0.2958,30261.0,30240.0,0.13632608]
[1609757756445,0.11187,30262.0,30260.0,0.13632608]
[1609757756643,0.00421904,30269.0,30260.0,0.13632608]
[1609757756845,0.07868641,33117.0,30260.0,0.13632608]
[1609757756846,0.00421875,30276.0,30260.0,0.13632608]
[1609757757043,0.7751,30274.0,30260.0,0.13632608]
[1609757758445,0.7751,30274.0,30245.0,0.14693]
[1609757758446,0.7751,30274.0,30273.0,0.13632608]
[1609757758644,0.13632608,30284.0,30273.0,0.13632608]
[1609757759245,0.0992,30283.0,30273.0,0.13632608]
[1609757759645,0.22473,30283.0,30273.0,0.13632608]
[1609757760348,0.22473,30283.0,30282.0,0.13632608]
[1609757760749,0.12553,30283.0,30282.0,0.13632608]
[1609757764755,0.2838,30285.0,30282.0,0.13632608]
[1609757769755,0.00416199,30321.0,30282.0,0.13632608]
[1609757770355,0.00416199,30321.0,30282.0,0.15448]
[1609757770855,0.00416199,30321.0,30320.0,0.13632608]
[1609757771759,0.71206245,30342.0,30320.0,0.13632608]
[1609757772460,1.1491546,30344.0,30320.0,0.13632608]
[1609757772461,0.2789,30344.0,30320.0,0.13632608]
[1609757772861,0.2789,30344.0,30334.0,0.13632608]
[1609757774762,0.2789,30344.0,30341.0,0.13632608]
[1609757776565,0.2789,30344.0,30324.0,4.1067]
[1609757776764,0.13632608,30336.0,30332.0,0.13632608]
[1609757776965,0.26091608,30336.0,30332.0,0.13632608]
[1609757777165,0.12459,30336.0,30332.0,0.13632608]
[1609757777567,0.12459,30336.0,30315.0,0.12253]
[1609757778268,5.1769,30335.0,30315.0,0.12253]
[1609757778869,0.13632608,30318.0,30316.0,0.13632608]
[1609757779067,0.26996608,30318.0,30316.0,0.13632608]
[1609757779466,0.26996608,30318.0,30296.0,0.10134]
[1609757779668,4.73436608,30318.0,30284.0,5.2312]
[1609757780268,4.73436608,30318.0,30285.0,0.0998]
[1609757780469,4.59804,30318.0,30285.0,0.10424]
[1609757780869,4.59804,30318.0,30317.0,0.13632608]
[1609757781070,0.13364,30318.0,30317.0,0.13632608]
[1609757782269,0.12459,30336.0,30317.0,0.13632608]
[1609757782469,5.57263,30344.0,30317.0,0.13632608]
[1609757782870,5.57263,30344.0,30334.0,0.13632608]
[1609757783070,0.42973,30344.0,30334.0,0.13632608]
[1609757784773,0.13632608,30335.0,30334.0,0.13632608]
[1609757784974,0.28780608,30335.0,30334.0,0.13632608]
[1609757785875,0.28780608,30335.0,30314.0,3.7182]
[1609757786275,0.28780608,30335.0,30293.0,0.10647]
[1609757786476,0.28780608,30335.0,30298.0,4.0428]
[1609757786676,0.28780608,30335.0,30298.0,4.16243]
[1609757786875,0.28780608,30335.0,30327.0,0.13632608]
[1609757786876,0.13632608,30329.0,30327.0,0.13632608]
[1609757787076,4.0645,30328.0,30327.0,0.13632608]
[1609757787276,0.13632608,30329.0,30327.0,0.13632608]
[1609757788079,0.15148,30335.0,30327.0,0.13632608]
[1609757788778,0.15148,30335.0,30334.0,0.13632608]
[1609757789281,0.15148,30335.0,30312.0,3.7226]
[1609757790081,0.42973,30344.0,30312.0,3.7226]
[1609757790280,0.09886,30335.0,30312.0,3.7226]
[1609757790881,0.09886,30335.0,30334.0,0.13632608]
[1609757791483,5.46906,30335.0,30308.0,0.1325]
[1609757792885,5.46906,30335.0,30334.0,0.13632608]
[1609757793084,0.09886,30335.0,30334.0,0.13632608]
[1609757793786,0.09886,30335.0,30315.0,0.14645]
[1609757794190,0.42973,30344.0,30315.0,0.14645]
[1609757794191,4.6344,30342.0,30315.0,0.14645]
[1609757794387,0.15414,30335.0,30315.0,0.14645]
[1609757795088,0.15414,30335.0,30334.0,0.13632608]
[1609757799293,0.13632608,30341.0,30334.0,0.13632608]
[1609757800095,4.6344,30342.0,30334.0,0.13632608]
[1609757801091,4.6344,30342.0,30341.0,0.13632608]
[1609757803694,0.01409298,30369.0,30341.0,0.13632608]
[1609757804898,0.00411045,30369.0,30341.0,0.13632608]
[1609757805095,0.00411045,30369.0,30350.0,0.13632608]
[1609757805497,0.01408939,30369.0,30350.0,0.13632608]
[1609757805998,0.01408766,30370.0,30350.0,0.13632608]
[1609757806798,0.00410893,30369.0,30350.0,0.13632608]
[1609757806997,0.11486893,30369.0,30350.0,0.13632608]
[1609757807198,0.13632608,30351.0,30350.0,0.13632608]
[1609757807400,0.27404608,30351.0,30350.0,0.13632608]
[1609757808901,0.27404608,30351.0,30324.0,3.7951]
[1609757809101,0.13772,30351.0,30347.0,0.13632608]
[1609757810203,0.13772,30351.0,30333.0,4.8947]
[1609757810403,0.13772,30351.0,30324.0,0.13839]
[1609757811207,0.13772,30351.0,30348.0,0.13632608]
[1609757812608,0.00414821,30364.0,30348.0,0.13632608]
[1609757813207,0.14047429,30364.0,30363.0,0.13632608]
[1609757813410,0.13632608,30364.0,30363.0,0.13632608]
[1609757814410,0.13632608,30364.0,30363.0,0.13429871]
[1609757816410,0.11076,30369.0,30363.0,0.13429871]
[1609757817011,0.01421667,30377.0,30363.0,0.13429871]
[1609757817212,0.01421667,30377.0,30324.0,0.13839]
[1609757817411,0.16066667,30377.0,30315.0,0.14645]
[1609757817613,0.14645,30377.0,30368.0,0.13632608]
[1609757819013,0.14645,30377.0,30329.0,0.12706]
[1609757819616,0.14645,30377.0,30374.0,0.13632608]
[1609757820014,0.14645,30377.0,30344.0,0.11951]
[1609757820214,0.14645,30377.0,30344.0,0.73601]
[1609757821615,0.14645,30377.0,30376.0,0.13632608]
[1609757822016,0.14645,30377.0,30354.0,0.11827]
[1609757822216,0.0987,30376.0,30366.0,4.2915]
[1609757822416,0.14645,30377.0,30366.0,4.2915]
[1609757822616,0.00415751,30381.0,30366.0,4.2915]
[1609757824418,0.00415751,30381.0,30380.0,0.13632608]
[1609757825423,0.00415528,30393.0,30380.0,0.13632608]
[1609757825921,0.2893,30398.0,30380.0,0.13632608]
[1609757826520,0.2893,30398.0,30397.0,0.13632608]
[1609757828529,0.00421025,30404.0,30397.0,0.13632608]
[1609757829326,0.00421025,30404.0,30380.0,4.85842]
[1609757829327,0.01443466,30406.0,30380.0,4.85842]
[1609757829726,0.00421011,30405.0,30380.0,4.85842]
[1609757829927,0.13780011,30405.0,30380.0,4.85842]
[1609757830127,0.13780011,30405.0,30380.0,0.14632]
[1609757830529,0.13780011,30405.0,30400.0,0.13632608]
[1609757831231,0.00421006,30403.0,30400.0,0.13632608]
[1609757832331,0.13359,30405.0,30400.0,0.13632608]
[1609757832529,0.13359,30405.0,30404.0,0.13632608]
[1609757834131,0.13359,30405.0,30390.0,5.3916]
[1609757834532,0.13359,30405.0,30404.0,0.13632608]
[1609757835234,0.13632608,30406.0,30404.0,0.13632608]
[1609757836837,5.1441,30412.0,30404.0,0.13632608]
[1609757837237,0.0143007,30420.0,30404.0,0.13632608]
[1609757838538,0.13632608,30406.0,30404.0,0.13632608]
[1609757838738,0.25832608,30406.0,30404.0,0.13632608]
[1609757839738,0.13632608,30406.0,30404.0,0.13632608]
[1609757839939,0.24265608,30406.0,30404.0,0.13632608]
[1609757840139,4.6528,30405.0,30380.0,0.05436]
[1609757840341,0.24265608,30406.0,30373.0,0.15203]
[1609757840540,0.24265608,30406.0,30338.0,1.43863726]
[1609757840541,5.0816,30376.0,30364.0,0.09433]
[1609757840739,0.10633,30406.0,30357.0,0.10737]
[1609757840939,4.1508,30365.0,30357.0,0.10737]
[1609757841142,0.79632608,30358.0,30357.0,0.10737]
[1609757841341,0.66,30358.0,30357.0,0.10737]
[1609757841539,0.0464,30364.0,30357.0,0.10737]
[1609757841741,0.0464,30364.0,30312.0,1.46262455]
[1609757841742,4.3495,30358.0,30312.0,1.46262455]
[1609757841940,0.0464,30364.0,30317.0,0.09696]
[1609757842141,4.6991,30362.0,30317.0,0.09696]
[1609757843141,4.6991,30362.0,30342.0,0.13632608]
[1609757843542,4.6991,30362.0,30333.0,0.15405]
[1609757843942,0.0464,30364.0,30333.0,0.15405]
[1609757844142,0.0464,30364.0,30333.0,0.14925]
[1609757844343,4.9305,30334.0,30309.0,0.10849]
[1609757844543,0.12055,30334.0,30309.0,0.10849]
[1609757844743,4.246,30323.0,30309.0,0.10849]
[1609757845142,0.10989,30325.0,30289.0,1.48753322]
[1609757845342,0.10989,30325.0,30289.0,5.96363322]
[1609757845741,0.10989,30325.0,30324.0,0.13632608]
[1609757846345,0.10989,30325.0,30320.0,4.7054]
[1609757846746,0.12055,30334.0,30320.0,4.7054]
[1609757846946,0.14082,30342.0,30320.0,4.7054]
[1609757847146,0.14082,30342.0,30320.0,4.81441]
[1609757847745,0.14082,30342.0,30341.0,0.13632608]
[1609757848747,0.271,30363.0,30341.0,0.13632608]
[1609757849550,0.271,30363.0,30341.0,0.27556608]
[1609757849748,0.271,30363.0,30362.0,0.13632608]
[1609757850348,0.271,30363.0,30341.0,0.13924]
[1609757850751,0.271,30363.0,30334.0,4.74467]
[1609757853851,0.13632608,30352.0,30348.0,0.13632608]
[1609757854053,0.25140608,30352.0,30348.0,0.13632608]
[1609757856956,0.11508,30352.0,30348.0,0.13632608]
[1609757859159,0.271,30363.0,30348.0,0.13632608]
[1609757859758,0.271,30363.0,30360.0,0.13632608]
[1609757860960,0.271,30363.0,30334.0,0.13452]
[1609757861163,5.0174,30363.0,30334.0,0.13452]
[1609757861764,5.0174,30363.0,30353.0,0.13632608]
[1609757861963,0.271,30363.0,30353.0,0.13632608]
[1609757862564,0.271,30363.0,30334.0,0.13452]
[1609757863364,0.271,30363.0,30327.0,0.15315]
[1609757863565,0.271,30363.0,30326.0,4.2163]
[1609757863765,0.271,30363.0,30348.0,0.13632608]
[1609757865868,0.271,30363.0,30362.0,0.13632608]
[1609757866067,0.271,30363.0,30332.0,5.2924]
[1609757866668,0.271,30363.0,30328.0,0.11784]
[1609757867867,0.271,30363.0,30352.0,0.13632608]
[1609757869869,0.13632608,30353.0,30352.0,0.13632608]
[1609757870070,0.24678608,30353.0,30352.0,0.13632608]
[1609757871271,0.18778608,30363.0,30328.0,0.11784]
[1609757871872,0.18778608,30363.0,30351.0,0.13632608]
[1609757872271,4.8846,30362.0,30322.0,4.7258]
[1609757872471,0.0464,30364.0,30313.0,0.10547]
[1609757872671,4.22391,30341.0,30313.0,0.10547]
[1609757873272,0.14011,30341.0,30300.0,1.44383142]
[1609757873676,5.4898,30330.0,30292.0,1.4600481]
[1609757873875,0.12084,30330.0,30292.0,1.4600481]
[1609757874275,0.12084,30330.0,30329.0,0.13632608]
[1609757874474,0.12084,30330.0,30301.0,0.13624]
[1609757875675,0.14011,30341.0,30301.0,0.13624]
[1609757876277,0.14011,30341.0,30340.0,0.13632608]
[1609757877878,0.13632608,30352.0,30340.0,0.13632608]
[1609757878279,0.13632608,30352.0,30351.0,0.13632608]
[1609757878681,0.13632608,30352.0,30316.0,3.9405]
[1609757879079,0.24806608,30352.0,30316.0,3.9405]
[1609757880280,0.13632608,30346.0,30344.0,0.13632608]
[1609757880981,0.11174,30352.0,30344.0,0.13632608]
[1609757882283,0.13632608,30349.0,30348.0,0.13632608]
[1609757883184,0.13632608,30349.0,30316.0,3.9405]
[1609757883390,0.23372608,30349.0,30316.0,3.9405]
[1609757883683,0.0974,30349.0,30316.0,3.9405]
[1609757884086,0.0974,30349.0,30317.0,0.1001]
[1609757884286,0.0974,30349.0,30348.0,0.13632608]
[1609757885486,0.0974,30349.0,30348.0,0.23382608]
[1609757885686,0.0974,30349.0,30348.0,0.13632608]
[1609757886690,0.0974,30349.0,30348.0,0.23462608]
[1609757887790,0.11174,30352.0,30348.0,0.13632608]
[1609757888088,0.13632608,30362.0,30348.0,0.13632608]
[1609757888289,0.13632608,30351.0,30329.0,4.3703]
[1609757888689,0.26785608,30351.0,30329.0,4.3703]
[1609757888889,0.0973,30350.0,30329.0,4.3703]
[1609757889089,0.0973,30350.0,30328.0,0.0995]
[1609757889289,0.0973,30350.0,30313.0,4.2377]
[1609757889489,0.26785608,30351.0,30314.0,0.1001]
[1609757889690,0.26785608,30351.0,30313.0,4.2377]
[1609757890291,0.13153,30351.0,30343.0,0.13632608]
[1609757890690,0.0994,30350.0,30344.0,0.0974]
[1609757891291,0.7348,30349.0,19265.0,0.01656308]
[1609757891489,0.13153,30351.0,19265.0,0.01656308]
[1609757891690,4.0242,30345.0,30295.0,5.82165334]
[1609757891891,0.13153,30351.0,30299.0,0.0995]
[1609757892091,4.7173,30331.0,30299.0,0.0995]
[1609757892290,4.7173,30331.0,30299.0,0.11177]
[1609757892491,0.5402,30319.0,30318.0,0.13632608]
[1609757892691,0.63861,30319.0,30318.0,0.13632608]
[1609757893392,0.63861,30319.0,30317.0,0.0993]
[1609757893593,0.09841,30319.0,30317.0,0.0993]
[1609757893794,0.19621,30319.0,30317.0,0.0993]
[1609757893993,0.09841,30319.0,30317.0,0.0993]
[1609757894193,4.0537,30325.0,30299.0,0.11177]
[1609757894395,0.11196,30320.0,30315.0,0.13632608]
[1609757895495,0.11196,30320.0,30299.0,0.11177]
[1609757895692,0.11196,30320.0,30291.0,5.0874]
[1609757896392,0.11196,30320.0,30267.0,1.50635229]
[1609757896393,0.13632608,30307.0,30302.0,0.13632608]
[1609757896792,5.4235,30311.0,30269.0,4.1399]
[1609757897293,5.4235,30311.0,30269.0,4.23821]
[1609757898301,5.4235,30311.0,30274.0,1.53086292]